bitfinex/quotes_BTCUSD_20250817
["timestamp","ask_amount","ask_price","bid_price","bid_amount"]
[1755430216910,0.17804,118500.0,118490.0,0.37408932]
[1755430217538,0.17804,118500.0,118490.0,0.39636832]
[1755430217736,0.18019,118500.0,118490.0,0.39636832]
[1755430218639,0.05,118500.0,118490.0,0.37100932]
[1755430218863,0.05,118500.0,118490.0,0.39944732]
[1755430219067,0.00296,118520.0,118490.0,0.42234314]
[1755430219268,0.12804,118510.0,118500.0,0.00308]
[1755430219476,0.00296,118520.0,118500.0,0.08995405]
[1755430219705,0.00296,118520.0,118500.0,0.41184264]
[1755430219906,0.12804,118520.0,118500.0,0.41184264]
[1755430220119,0.12804,118520.0,118500.0,0.46009646]
[1755430220322,0.131,118520.0,118500.0,0.46009646]
[1755430220544,0.131,118520.0,118500.0,0.43720064]
[1755430220713,0.131,118520.0,118500.0,0.46009646]
[1755430221104,0.131,118520.0,118510.0,0.00210952]
[1755430221313,0.13315,118520.0,118510.0,0.00210952]
[1755430221596,0.13415,118520.0,118510.0,0.00210952]
[1755430222203,0.13315,118520.0,118510.0,0.00210952]
[1755430222385,0.13415,118520.0,118510.0,0.00210952]
[1755430222844,0.13315,118520.0,118510.0,0.00210952]
[1755430224578,0.00511,118520.0,118510.0,0.00210952]
[1755430224773,0.13315,118520.0,118510.0,0.00210952]
[1755430239390,0.00511,118520.0,118510.0,0.00210952]
[1755430248670,0.00147,118520.0,118510.0,0.00210952]
[1755430248882,0.128,118530.0,118510.0,0.09443309]
[1755430249095,0.128,118530.0,118510.0,0.14172278]
[1755430249726,0.00209,118520.0,118510.0,0.14172278]
[1755430256436,0.128,118530.0,118510.0,0.14172278]
[1755430256782,0.13112,118530.0,118510.0,0.14172278]
[1755430257733,0.13212,118530.0,118510.0,0.14172278]
[1755430269628,0.129,118530.0,118510.0,0.14172278]
[1755430270987,0.129,118530.0,118520.0,0.0031]
[1755430271201,0.129,118530.0,118520.0,0.00519]
[1755430272058,0.128,118530.0,118520.0,0.00519]
[1755430272456,0.129,118530.0,118520.0,0.00519]
[1755430274059,0.001,118530.0,118520.0,0.00519]
[1755430274329,0.129,118530.0,118520.0,0.00519]
[1755430275716,0.1311,118530.0,118520.0,0.00519]
[1755430276959,0.0031,118530.0,118520.0,0.00519]
[1755430277174,0.13106,118530.0,118520.0,0.00519]
[1755430281587,0.0031,118530.0,118520.0,0.00519]
[1755430281791,0.13106,118530.0,118520.0,0.00519]
[1755430282200,0.13106,118530.0,118520.0,0.00729934]
[1755430285028,0.13106,118530.0,118520.0,0.00419934]
[1755430285710,0.13106,118530.0,118520.0,0.00210934]
[1755430287132,0.13407,118530.0,118520.0,0.00210934]
[1755430288865,0.13106,118530.0,118520.0,0.00729934]
[1755430289435,0.13106,118530.0,118520.0,0.00419934]
[1755430289795,0.608746,118530.0,118520.0,0.00210934]
[1755430296593,0.608746,118530.0,118510.0,0.45015556]
[1755430298232,0.608746,118530.0,118510.0,0.42725974]
[1755430299662,0.607746,118530.0,118510.0,0.42725974]
[1755430299894,0.608746,118530.0,118510.0,0.42725974]
[1755430304926,0.608746,118530.0,118510.0,0.55517974]
[1755430308976,0.608706,118530.0,118510.0,0.55517974]
[1755430309190,0.480786,118530.0,118510.0,0.55517974]
[1755430309390,0.608706,118530.0,118510.0,0.55517974]
[1755430315892,0.480786,118530.0,118510.0,0.55517974]
[1755430316102,0.12792,118520.0,118510.0,0.55517974]
[1755430316305,0.12792,118520.0,118510.0,0.55716974]
[1755430316893,0.12792,118520.0,118510.0,0.55576974]
[1755430321492,0.477686,118530.0,118510.0,0.55576974]
[1755430321672,0.605606,118530.0,118510.0,0.55576974]
[1755430321898,0.608676,118530.0,118510.0,0.55576974]
[1755430322088,0.00211,118520.0,118510.0,0.42275974]
[1755430322214,0.00518,118520.0,118510.0,0.55067974]
[1755430322420,0.00518,118520.0,118510.0,0.42275974]
[1755430322626,0.00518,118520.0,118510.0,0.39740374]
[1755430323049,0.00211,118520.0,118510.0,0.39740374]
[1755430323250,0.00211,118520.0,118510.0,0.13070374]
[1755430327911,0.00211,118520.0,118510.0,0.13286374]
[1755430328494,0.00211,118520.0,118510.0,0.13599374]
[1755430332957,0.00211,118520.0,118510.0,0.13286374]
[1755430333588,0.00211,118520.0,118510.0,0.13070374]
[1755430334656,0.13003,118520.0,118510.0,0.13599374]
[1755430339725,0.13003,118520.0,118510.0,0.13070374]
[1755430339910,0.13303,118520.0,118510.0,0.13070374]
[1755430340456,0.13303,118520.0,118510.0,0.04728969]
[1755430340627,0.13303,118520.0,118500.0,0.2667]
[1755430340826,0.13303,118520.0,118500.0,0.35151405]
[1755430341048,0.13303,118520.0,118500.0,0.08481405]
[1755430341402,0.05,118510.0,118500.0,0.08794405]
[1755430341627,0.05209,118510.0,118500.0,0.09010405]
[1755430342288,0.05209,118510.0,118500.0,0.14811092]
[1755430342807,0.05209,118510.0,118500.0,0.14911092]
[1755430343592,0.05209,118510.0,118500.0,0.14382092]
[1755430344121,0.05209,118510.0,118500.0,0.14482092]
[1755430345584,0.06060207,118510.0,118500.0,0.14698092]
[1755430346372,0.06060207,118510.0,118500.0,0.15011092]
[1755430346970,0.05209,118510.0,118500.0,0.15011092]
[1755430352548,0.06053844,118510.0,118500.0,0.15011092]
[1755430356328,0.05209,118510.0,118500.0,0.15011092]
[1755430357423,0.05,118510.0,118500.0,0.15011092]
[1755430359518,0.05206,118510.0,118500.0,0.15011092]
[1755430360963,0.06062614,118510.0,118500.0,0.15011092]
[1755430362744,0.05,118510.0,118500.0,0.15011092]
[1755430364379,0.05,118510.0,118500.0,0.15222062]
[1755430380125,0.05206,118510.0,118500.0,0.14482092]
[1755430380337,0.05509,118510.0,118500.0,0.14482092]
[1755430380757,0.05509,118510.0,118500.0,0.002]
[1755430381421,0.1091847,118510.0,118500.0,0.002]
[1755430382282,0.1091847,118510.0,118500.0,0.001]
[1755430382830,0.1091847,118510.0,118480.0,0.48474281]
[1755430383020,0.12788,118500.0,118490.0,0.08481405]
[1755430383232,0.12992,118500.0,118490.0,0.05696056]
[1755430383657,0.13309,118500.0,118490.0,0.05696056]
[1755430384759,0.13309,118500.0,118490.0,0.05472056]
[1755430384957,0.13309,118500.0,118480.0,0.26999416]
[1755430385178,0.13309,118500.0,118480.0,0.35181821]
[1755430386179,0.13309,118500.0,118490.0,0.001]
[1755430386381,0.13309,118500.0,118490.0,0.002]
[1755430386635,0.13309,118500.0,118480.0,0.08817821]
[1755430386857,0.13309,118500.0,118480.0,0.15461705]
[1755430387069,0.13309,118500.0,118480.0,0.15561705]
[1755430387274,0.13309,118500.0,118480.0,0.15461705]
[1755430387628,0.13309,118500.0,118490.0,0.001]
[1755430387833,0.13309,118500.0,118490.0,0.002]
[1755430389177,0.13309,118500.0,118490.0,0.001]
[1755430389905,0.13309,118500.0,118480.0,0.15461705]
[1755430390385,0.13309,118500.0,118490.0,0.001]
[1755430391213,0.13309,118500.0,118480.0,0.15461705]
[1755430392823,0.13309,118500.0,118490.0,0.001]
[1755430393478,0.13309,118500.0,118480.0,0.15461705]
[1755430393886,0.13309,118500.0,118480.0,0.15561705]
[1755430394190,0.13309,118500.0,118480.0,0.15461705]
[1755430394464,0.13309,118500.0,118490.0,0.001]
[1755430394668,0.13309,118500.0,118490.0,0.002]
[1755430395082,0.30186637,118500.0,118490.0,0.002]
[1755430395984,0.16879061,118490.0,118480.0,0.068803]
[1755430396184,0.16879061,118490.0,118480.0,0.070893]
[1755430396365,0.16879061,118490.0,118480.0,0.071893]
[1755430396809,0.16879061,118490.0,118480.0,0.070893]
[1755430397032,0.16879061,118490.0,118480.0,0.071893]
[1755430397238,0.16879061,118490.0,118480.0,0.070893]
[1755430397824,0.16879061,118490.0,118480.0,0.071893]
[1755430399880,0.16879061,118490.0,118480.0,0.072893]
[1755430418495,0.17080061,118490.0,118480.0,0.072893]
[1755430433269,0.17080061,118490.0,118480.0,0.069833]
[1755430435850,0.17377061,118490.0,118480.0,0.00230416]
[1755430436071,0.22937463,118490.0,118480.0,0.00230416]
[1755430436644,0.22937463,118490.0,118480.0,0.00130416]
[1755430437047,0.22937463,118490.0,118480.0,0.00030416]
[1755430437283,0.23037463,118490.0,118480.0,0.00030416]
[1755430438532,0.78533406,118490.0,118480.0,0.00030416]
[1755430438962,0.72311766,118490.0,118480.0,0.00030416]
[1755430439470,0.72101348,118490.0,118480.0,0.00030416]
[1755430439737,0.72311766,118490.0,118480.0,0.00030416]
[1755430441731,0.74848666,118490.0,118480.0,0.00030416]
[1755430441954,0.73266186,118490.0,118480.0,0.00030416]
[1755430442854,0.74846732,118490.0,118480.0,0.00030416]
[1755430444146,0.74846271,118490.0,118480.0,0.00030416]
[1755430444658,0.73266186,118490.0,118480.0,0.00030416]
[1755430457252,0.86054186,118490.0,118480.0,0.00030416]
[1755430460205,0.82072672,118490.0,118480.0,1e-08]
[1755430460408,0.87551955,118490.0,118480.0,1e-08]
[1755430461234,0.87451955,118490.0,118480.0,1e-08]
[1755430461676,0.87851955,118490.0,118480.0,1e-08]
[1755430462396,0.87852463,118490.0,118480.0,1e-08]
[1755430462613,0.88052463,118490.0,118480.0,1e-08]
[1755430462823,0.88842575,118490.0,118480.0,1e-08]
[1755430465465,0.89437322,118490.0,118480.0,1e-08]
[1755430468268,0.89438379,118490.0,118480.0,1e-08]
[1755430471291,0.86473067,118490.0,118480.0,1e-08]
[1755430471427,0.89440679,118490.0,118480.0,1e-08]
[1755430471950,0.89440709,118490.0,118480.0,1e-08]
[1755430472146,0.89440743,118490.0,118480.0,1e-08]
[1755430473908,0.89440773,118490.0,118480.0,1e-08]
[1755430474518,0.89440791,118490.0,118480.0,1e-08]
[1755430477073,0.98330791,118490.0,118480.0,1e-08]
[1755430477755,0.89440791,118490.0,118480.0,1e-08]
[1755430478791,0.94511791,118490.0,118480.0,1e-08]
[1755430480374,0.93720401,118490.0,118480.0,1e-08]
[1755430480550,0.94511989,118490.0,118480.0,1e-08]
[1755430481084,0.94512006,118490.0,118480.0,1e-08]
[1755430482375,0.94512208,118490.0,118480.0,1e-08]
[1755430483555,0.92137695,118490.0,118480.0,1e-08]
[1755430483776,0.94512292,118490.0,118480.0,1e-08]
[1755430484004,0.94215292,118490.0,118480.0,1e-08]
[1755430485100,0.94215326,118490.0,118480.0,1e-08]
[1755430486529,0.94215408,118490.0,118480.0,1e-08]
[1755430489427,0.93621698,118490.0,118480.0,1e-08]
[1755430489689,0.94216753,118490.0,118480.0,1e-08]
[1755430490468,0.96041639,118490.0,118480.0,1e-08]
[1755430490731,0.96341639,118490.0,118480.0,1e-08]
[1755430495665,0.96341688,118490.0,118480.0,1e-08]
[1755430498556,0.94457878,118490.0,118480.0,1e-08]
[1755430498817,0.96041792,118490.0,118480.0,1e-08]
[1755430499111,0.96041786,118490.0,118480.0,1e-08]
[1755430501075,0.96037786,118490.0,118480.0,1e-08]
[1755430501305,0.96037786,118490.0,118480.0,0.00212001]
[1755430501887,0.90558503,118490.0,118480.0,0.00212001]
[1755430502094,0.77774503,118490.0,118480.0,0.00212001]
[1755430502302,0.90558503,118490.0,118480.0,0.00212001]
[1755430503565,0.8758867,118490.0,118480.0,0.00212001]
[1755430503889,0.90558497,118490.0,118480.0,0.00212001]
[1755430506151,0.90558497,118490.0,118480.0,0.00505001]
[1755430506373,0.90357497,118490.0,118480.0,0.00505001]
[1755430506578,0.88532611,118490.0,118480.0,0.00505001]
[1755430506794,0.88532496,118490.0,118480.0,0.00505001]
[1755430510076,0.88532411,118490.0,118480.0,0.00505001]
[1755430512344,0.83461411,118490.0,118480.0,0.00505001]
[1755430512857,0.834613,118490.0,118480.0,0.00505001]
[1755430515118,0.836683,118490.0,118480.0,0.00505001]
[1755430515802,0.81014784,118490.0,118480.0,1e-08]
[1755430516010,0.83984206,118490.0,118480.0,1e-08]
[1755430516430,0.83984243,118490.0,118480.0,1e-08]
[1755430519479,0.50883336,118460.0,118450.0,0.1]
[1755430519703,0.64013754,118460.0,118450.0,0.10258797]
[1755430520575,0.65597058,118460.0,118450.0,0.10258797]
[1755430521409,0.65597058,118460.0,118450.0,0.10551797]
[1755430521615,0.70597058,118460.0,118450.0,0.10551797]
[1755430522202,0.70597058,118460.0,118450.0,0.10651797]
[1755430522616,0.71450694,118460.0,118450.0,0.10651797]
[1755430523030,0.71450694,118460.0,118450.0,0.10551797]
[1755430523504,0.71650694,118460.0,118450.0,0.10551797]
[1755430523722,0.71750694,118460.0,118450.0,0.10551797]
[1755430523938,0.71550694,118460.0,118450.0,0.10551797]
[1755430524155,0.71450694,118460.0,118450.0,0.10551797]
[1755430524366,0.71550694,118460.0,118450.0,0.10551797]
[1755430525061,0.71549632,118460.0,118450.0,0.10551797]
[1755430532802,0.71750632,118460.0,118450.0,0.10258797]
[1755430533014,0.72065632,118460.0,118450.0,0.10048797]
[1755430533648,0.80547037,118460.0,118450.0,0.10048797]
[1755430534099,0.80546128,118460.0,118450.0,0.10048797]
[1755430535127,0.80546128,118460.0,118450.0,0.10245797]
[1755430535688,0.80030128,118460.0,118450.0,0.10546797]
[1755430536092,0.71548723,118460.0,118450.0,0.11601477]
[1755430536291,0.58628723,118460.0,118450.0,0.11601477]
[1755430536564,0.71636723,118460.0,118450.0,0.11601477]
[1755430536895,0.71636723,118460.0,118450.0,0.10546797]
[1755430537771,0.71426305,118460.0,118450.0,0.10546797]
[1755430537980,0.71636723,118460.0,118450.0,0.10546797]
[1755430540015,0.71426305,118460.0,118450.0,0.10546797]
[1755430540216,0.71636723,118460.0,118450.0,0.10546797]
[1755430540822,0.71426305,118460.0,118450.0,0.10546797]
[1755430541047,0.71636723,118460.0,118450.0,0.10546797]
[1755430542992,0.71637183,118460.0,118450.0,0.10546797]
[1755430543705,0.7163734,118460.0,118450.0,0.10546797]
[1755430546430,0.7183834,118460.0,118450.0,0.10546797]
[1755430546634,0.7183834,118460.0,118450.0,0.10245797]
[1755430549994,0.71627922,118460.0,118450.0,0.10245797]
[1755430550170,0.7183834,118460.0,118450.0,0.10245797]
[1755430550371,0.7183834,118460.0,118450.0,0.11300477]
[1755430550595,0.7025639,118460.0,118450.0,0.11300477]
[1755430554236,0.70045972,118460.0,118450.0,0.11300477]
[1755430554373,0.7025639,118460.0,118450.0,0.11300477]
[1755430554776,0.70045972,118460.0,118450.0,0.11300477]
[1755430555156,0.7025639,118460.0,118450.0,0.11300477]
[1755430556438,0.3625639,118460.0,118450.0,0.11300477]
[1755430558623,0.36045972,118460.0,118450.0,0.11300477]
[1755430558851,0.3625639,118460.0,118450.0,0.11300477]
[1755430560346,0.21983336,118460.0,118450.0,0.11601477]
[1755430560542,0.21983336,118460.0,118450.0,0.28697297]
[1755430560779,0.35039336,118460.0,118450.0,0.20082882]
[1755430561192,0.35039336,118460.0,118450.0,0.36967643]
[1755430561538,0.34939336,118460.0,118450.0,0.36967643]
[1755430561929,0.34939336,118460.0,118450.0,0.37067643]
[1755430562139,0.34939336,118460.0,118450.0,0.20182882]
[1755430566801,0.35460336,118460.0,118450.0,0.19684882]
[1755430567007,0.35151336,118460.0,118450.0,0.19900882]
[1755430568238,0.35460336,118460.0,118450.0,0.19684882]
[1755430568449,0.22404336,118460.0,118450.0,0.19684882]
[1755430568672,0.35496336,118460.0,118450.0,0.19900882]
[1755430568925,0.35187336,118460.0,118450.0,0.19900882]
[1755430571979,0.35187336,118460.0,118450.0,0.20201882]
[1755430572402,0.35187336,118460.0,118450.0,0.19900882]
[1755430578519,0.34975336,118460.0,118450.0,0.20201882]
[1755430579499,0.35187336,118460.0,118450.0,0.19900882]
[1755430579708,0.35496336,118460.0,118450.0,0.19900882]
[1755430581969,0.35496336,118460.0,118450.0,0.19684882]
[1755430582487,0.35496336,118460.0,118450.0,0.19900882]
[1755430591470,0.35187336,118460.0,118450.0,0.19900882]
[1755430594545,0.35488336,118460.0,118450.0,0.19900882]
[1755430595507,0.35187336,118460.0,118450.0,0.19900882]
[1755430599364,0.35187336,118460.0,118450.0,0.21645784]
[1755430599618,0.35187336,118460.0,118450.0,0.21939784]
[1755430599831,0.34975336,118460.0,118450.0,0.21939784]
[1755430602664,0.35079336,118460.0,118450.0,0.21939784]
[1755430602884,0.35079336,118460.0,118450.0,0.38824545]
[1755430603123,0.35079336,118460.0,118450.0,0.52020545]
[1755430603349,0.05,118460.0,118450.0,0.52020545]
[1755430603808,0.05,118460.0,118450.0,0.83316127]
[1755430604030,0.1772451,118480.0,118450.0,0.83316127]
[1755430604031,0.3092851,118480.0,118460.0,0.18627359]
[1755430604250,0.3092851,118480.0,118470.0,0.02166925]
[1755430604495,0.3092851,118480.0,118470.0,0.02460925]
[1755430604676,0.3092851,118480.0,118470.0,0.02166925]
[1755430604677,0.3112751,118480.0,118470.0,0.02166925]
[1755430605137,0.3142851,118480.0,118470.0,0.02166925]
[1755430605266,0.3142851,118480.0,118470.0,0.01955902]
[1755430605479,0.3142851,118480.0,118470.0,0.05565491]
[1755430605688,0.3142851,118480.0,118470.0,0.05776514]
[1755430605884,0.3152851,118480.0,118470.0,0.05776514]
[1755430606562,0.3152851,118480.0,118470.0,0.05565491]
[1755430606718,0.3162851,118480.0,118470.0,0.05565491]
[1755430607369,0.3162851,118480.0,118470.0,0.05776514]
[1755430608107,0.3152851,118480.0,118470.0,0.05776514]
[1755430608931,0.3142851,118480.0,118470.0,0.05776514]
[1755430609367,0.3642851,118480.0,118470.0,0.05776514]
[1755430611286,0.3642851,118480.0,118470.0,0.05565491]
[1755430612099,0.3642851,118480.0,118470.0,0.05776514]
[1755430619312,0.3642851,118480.0,118470.0,0.05565491]
[1755430620011,0.3642851,118480.0,118470.0,0.05776514]
[1755430628018,0.3642851,118480.0,118470.0,0.08313114]
[1755430629044,0.3642851,118480.0,118470.0,0.08102091]
[1755430634439,0.3642851,118480.0,118470.0,0.07891091]
[1755430635075,0.3642851,118480.0,118470.0,0.07991091]
[1755430635279,0.3642851,118480.0,118470.0,0.08091091]
[1755430645724,0.3642851,118480.0,118470.0,0.08297091]
[1755430646460,0.3592851,118480.0,118470.0,0.08297091]
[1755430646683,0.3592851,118480.0,118470.0,0.08613091]
[1755430648405,0.3592851,118480.0,118470.0,0.25706025]
[1755430648621,0.3592851,118480.0,118470.0,0.08613091]
[1755430649302,0.3614151,118480.0,118470.0,0.08613091]
[1755430649744,0.3614151,118480.0,118470.0,0.08297091]
[1755430651276,0.3614151,118480.0,118470.0,0.25179002]
[1755430651484,0.3592851,118480.0,118470.0,0.25495002]
[1755430652248,0.3614151,118480.0,118470.0,0.25495002]
[1755430652507,0.3614151,118480.0,118470.0,0.08613091]
[1755430652968,0.3614151,118480.0,118470.0,0.08297091]
[1755430654208,0.3644751,118480.0,118470.0,0.08297091]
[1755430655770,0.05,118480.0,118470.0,0.34389453]
[1755430655974,0.05,118480.0,118470.0,0.47067407]
[1755430657377,0.05,118480.0,118470.0,0.46967407]
[1755430657996,0.05,118480.0,118470.0,0.46867407]
[1755430658501,0.05,118480.0,118470.0,0.46967407]
[1755430658961,0.05,118480.0,118470.0,0.46867407]
[1755430659161,0.05,118480.0,118470.0,0.47167407]
[1755430659368,0.05,118480.0,118470.0,0.47367407]
[1755430662949,0.00212,118480.0,118470.0,0.47060407]
[1755430663357,0.00518,118480.0,118470.0,0.47060407]
[1755430664209,0.00212,118480.0,118470.0,0.47060407]
[1755430665307,0.00518,118480.0,118470.0,0.47060407]
[1755430665893,0.00212,118480.0,118470.0,0.47060407]
[1755430666099,0.17185087,118490.0,118480.0,0.16880486]
[1755430666306,0.17397087,118490.0,118480.0,0.3161219]
[1755430666789,0.17397087,118490.0,118480.0,0.3414849]
[1755430667640,0.17397087,118490.0,118480.0,0.3434849]
[1755430668492,0.22397087,118490.0,118480.0,0.3444849]
[1755430672673,0.22397087,118490.0,118480.0,0.3464949]
[1755430676971,0.22091087,118490.0,118480.0,0.3464949]
[1755430687826,0.22412087,118490.0,118480.0,0.3464949]
[1755430697941,0.22412087,118490.0,118480.0,0.17769004]
[1755430701006,0.22412087,118490.0,118480.0,0.17568004]
[1755430701927,0.22412087,118490.0,118480.0,0.17468004]
[1755430702125,0.22412087,118490.0,118480.0,0.17268004]
[1755430702278,0.22412087,118490.0,118480.0,0.17368004]
[1755430703878,0.22412087,118490.0,118480.0,0.17468004]
[1755430708992,0.22412087,118490.0,118480.0,0.06450299]
[1755430710146,0.22412087,118490.0,118480.0,0.06250299]
[1755430710609,0.22512087,118490.0,118480.0,0.06250299]
[1755430710991,0.16880486,118480.0,118470.0,0.1298]
[1755430711193,0.17086486,118480.0,118470.0,0.13182]
[1755430711395,0.30066486,118480.0,118470.0,0.13182]
[1755430711641,0.29860486,118480.0,118470.0,0.13478]
[1755430712578,0.30066486,118480.0,118470.0,0.13182]
[1755430712781,0.30066486,118480.0,118470.0,0.13282]
[1755430713140,0.30066486,118480.0,118470.0,0.16982074]
[1755430713345,0.17086486,118480.0,118470.0,0.16882074]
[1755430713546,0.16880486,118480.0,118470.0,0.34079985]
[1755430713747,0.16880486,118480.0,118470.0,0.34179985]
[1755430713916,0.16880486,118480.0,118470.0,0.34279985]
[1755430714334,0.16880486,118480.0,118470.0,0.34179985]
[1755430714670,0.16880486,118480.0,118470.0,0.34379985]
[1755430725736,0.17076486,118480.0,118470.0,0.34379985]
[1755430740026,0.00196,118480.0,118470.0,0.34379985]
[1755430740553,0.17200087,118490.0,118470.0,0.4286139]
[1755430740734,0.30128087,118490.0,118480.0,0.00211006]
[1755430740946,0.30324087,118490.0,118470.0,0.4519589]
[1755430741148,0.30324087,118490.0,118480.0,0.16880486]
[1755430741353,0.30324087,118490.0,118480.0,0.23088124]
[1755430742524,0.30324087,118490.0,118480.0,0.06207638]
[1755430742735,0.30324087,118490.0,118480.0,0.06418644]
[1755430743398,0.30324087,118490.0,118480.0,0.06618644]
[1755430746648,0.30324087,118490.0,118480.0,0.06407638]
[1755430755928,0.30324087,118490.0,118480.0,0.002]
[1755430756566,0.35534505,118490.0,118480.0,0.002]
[1755430756775,0.35324087,118490.0,118480.0,0.002]
[1755430756984,0.35534505,118490.0,118480.0,0.002]
[1755430757148,0.35534505,118490.0,118480.0,0.001]
[1755430757355,0.35634505,118490.0,118480.0,0.001]
[1755430757910,0.35534505,118490.0,118480.0,0.001]
[1755430758126,0.35634505,118490.0,118480.0,0.001]
[1755430758408,0.16881911,118470.0,118460.0,0.154606]
[1755430758575,0.17077911,118470.0,118460.0,0.15955929]
[1755430759229,0.17077911,118470.0,118460.0,0.32839265]
[1755430759679,0.17077911,118470.0,118460.0,0.33039265]
[1755430761511,0.17077911,118470.0,118460.0,0.33139265]
[1755430761960,0.17077911,118470.0,118460.0,0.16255929]
[1755430762311,0.17077911,118470.0,118460.0,0.33139265]
[1755430764174,0.17077911,118470.0,118460.0,0.16255929]
[1755430764952,0.17371911,118470.0,118460.0,0.16255929]
[1755430765985,0.17077911,118470.0,118460.0,0.16255929]
[1755430770503,0.16881911,118470.0,118460.0,0.33139265]
[1755430770709,0.16881911,118470.0,118460.0,0.33454265]
[1755430775715,0.17084911,118470.0,118460.0,0.33454265]
[1755430776492,0.17084911,118470.0,118460.0,0.33139265]
[1755430780086,0.17084911,118470.0,118460.0,0.33439265]
[1755430784245,0.17084911,118470.0,118460.0,0.33139265]
[1755430784756,0.17377911,118470.0,118460.0,0.07576524]
[1755430784972,0.30301911,118470.0,118460.0,0.07576524]
[1755430785602,0.30301911,118470.0,118460.0,0.05039924]
[1755430787081,0.30301911,118470.0,118460.0,0.003]
[1755430787653,0.30301911,118470.0,118460.0,0.002]
[1755430788668,0.16883336,118460.0,118450.0,0.36718797]
[1755430788901,0.17086336,118460.0,118450.0,0.10048797]
[1755430789102,0.17379336,118460.0,118450.0,0.10048797]
[1755430789432,0.17379336,118460.0,118450.0,0.14402828]
[1755430790038,0.17379336,118460.0,118450.0,0.14502828]
[1755430791972,0.17379336,118460.0,118450.0,0.14602828]
[1755430803751,0.17379336,118460.0,118450.0,0.14812828]
[1755430807407,0.16883336,118460.0,118450.0,0.15330887]
[1755430807623,0.29805911,118470.0,118450.0,0.32215648]
[1755430807825,0.16883336,118460.0,118450.0,0.31697589]
[1755430808234,0.16883336,118460.0,118450.0,0.34234689]
[1755430808449,0.16883336,118460.0,118450.0,0.34541689]
[1755430809444,0.16883336,118460.0,118450.0,0.34441689]
[1755430810259,0.16883336,118460.0,118450.0,0.31904589]
[1755430811097,0.16883336,118460.0,118450.0,0.32004589]
[1755430813756,0.16883336,118460.0,118450.0,0.40485994]
[1755430813998,0.16883336,118460.0,118450.0,0.43022894]
[1755430820483,0.17094336,118460.0,118450.0,0.42715894]
[1755430820684,0.17396336,118460.0,118450.0,0.42715894]
[1755430822385,0.17094336,118460.0,118450.0,0.42715894]
[1755430828640,0.17396336,118460.0,118450.0,0.42715894]
[1755430828818,0.17396336,118460.0,118450.0,0.42505894]
[1755430828968,0.17396336,118460.0,118450.0,0.42715894]
[1755430829517,0.17094336,118460.0,118450.0,0.42715894]
[1755430829726,0.16883336,118460.0,118450.0,0.43022894]
[1755430834347,0.17081336,118460.0,118450.0,0.43022894]
[1755430834859,0.16883336,118460.0,118450.0,0.43022894]
[1755430844949,0.17081336,118460.0,118450.0,0.42715894]
[1755430845156,0.17393336,118460.0,118450.0,0.42715894]
[1755430845362,0.17393336,118460.0,118450.0,0.25621133]
[1755430852840,0.17393336,118460.0,118450.0,0.10248797]
[1755430854238,0.17603754,118460.0,118450.0,0.10248797]
[1755430857346,0.17393336,118460.0,118450.0,0.10248797]
[1755430857564,0.17603754,118460.0,118450.0,0.10248797]
[1755430860649,0.17603754,118460.0,118450.0,0.10443797]
[1755430860857,0.17093754,118460.0,118450.0,0.14803485]
[1755430861019,0.17093754,118460.0,118450.0,0.4038071]
[1755430861352,0.17093754,118460.0,118450.0,0.40169651]
[1755430861696,0.16883336,118460.0,118450.0,0.42706551]
[1755430861903,0.17093754,118460.0,118450.0,0.42706551]
[1755430863959,0.16883336,118460.0,118450.0,0.42706551]
[1755430864143,0.17093754,118460.0,118450.0,0.42706551]
[1755430864957,0.16883336,118460.0,118450.0,0.42706551]
[1755430865163,0.17093754,118460.0,118450.0,0.42706551]
[1755430866414,0.16883336,118460.0,118450.0,0.42706551]
[1755430866935,0.17294754,118460.0,118450.0,0.17035385]
[1755430867136,0.17599754,118460.0,118450.0,0.14303485]
[1755430870687,0.17389336,118460.0,118450.0,0.14303485]
[1755430870867,0.17599754,118460.0,118450.0,0.14303485]
[1755430871394,0.17599754,118460.0,118450.0,0.14499485]
[1755430871980,0.17389336,118460.0,118450.0,0.14499485]
[1755430872138,0.17599754,118460.0,118450.0,0.14499485]
[1755430872788,0.17093754,118460.0,118450.0,0.14820485]
[1755430873284,0.17294754,118460.0,118450.0,0.14820485]
[1755430873496,0.17294754,118460.0,118450.0,0.14499485]
[1755430874600,0.17599754,118460.0,118450.0,0.14499485]
[1755430879100,0.17389336,118460.0,118450.0,0.14499485]
[1755430879332,0.17599754,118460.0,118450.0,0.14499485]
[1755430882627,0.17389336,118460.0,118450.0,0.14499485]
[1755430882839,0.17599754,118460.0,118450.0,0.14499485]
[1755430888265,0.17599754,118460.0,118450.0,0.14303485]
[1755430895162,0.17599754,118460.0,118450.0,0.14516485]
[1755430899029,0.17294754,118460.0,118450.0,0.14516485]
[1755430899235,0.17294754,118460.0,118450.0,0.14830485]
[1755430899413,0.17093754,118460.0,118450.0,0.31926305]
[1755430899577,0.29783336,118460.0,118450.0,0.31715246]
[1755430899784,0.29993754,118460.0,118450.0,0.31715246]
[1755430900381,0.17093754,118460.0,118450.0,0.31715246]
[1755430900601,0.17093754,118460.0,118450.0,0.31615246]
[1755430901005,0.16883336,118460.0,118450.0,0.31715246]
[1755430901219,0.17093754,118460.0,118450.0,0.31715246]
[1755430901466,0.17093754,118460.0,118450.0,0.31615246]
[1755430902420,0.17093754,118460.0,118450.0,0.31715246]
[1755430904069,0.16883336,118460.0,118450.0,0.31715246]
[1755430904523,0.17093754,118460.0,118450.0,0.31715246]
[1755430906695,0.16883336,118460.0,118450.0,0.31715246]
[1755430906923,0.17093754,118460.0,118450.0,0.31715246]
[1755430907468,0.16883336,118460.0,118450.0,0.31715246]
[1755430907665,0.17093754,118460.0,118450.0,0.31715246]
[1755430908072,0.16883336,118460.0,118450.0,0.31715246]
[1755430908311,0.17093754,118460.0,118450.0,0.31715246]
[1755430910637,0.17093754,118460.0,118450.0,0.40196651]
[1755430911300,0.16883336,118460.0,118450.0,0.40196651]
[1755430911605,0.17093754,118460.0,118450.0,0.40196651]
[1755430912529,0.00210418,118460.0,118450.0,0.40196651]
[1755430913640,0.30081911,118470.0,118450.0,0.40196651]
[1755430913831,0.30292329,118470.0,118460.0,0.16883336]
[1755430914047,0.30292329,118470.0,118460.0,0.22804335]
[1755430914048,0.30199329,118470.0,118460.0,0.22804335]
[1755430916204,0.17299329,118470.0,118460.0,0.22804335]
[1755430916403,0.30195329,118470.0,118460.0,0.22804335]
[1755430917478,0.30495329,118470.0,118460.0,0.22804335]
[1755430922090,0.30284911,118470.0,118460.0,0.22804335]
[1755430922279,0.30495329,118470.0,118460.0,0.22804335]
[1755430938693,0.30284911,118470.0,118460.0,0.22804335]
[1755430938909,0.30495329,118470.0,118460.0,0.22804335]